[Event "FIDE World Rapid Chess Championship 2021"]
[White "Mikhalevski, Victor"]
[Black "Heimann, Andreas"]
[WhiteFideId "2801914"]
[BlackFideId "24624632"]
[WhiteElo "2366"]
[BlackElo "2616"]
[Result "0-1"]
[Round "08"]
[TimeControl "900+10"]
[Date "2021.12.27"]
[WhiteClock "0:07:08"]
[BlackClock "0:11:26"]

1. Nf3 {[%clk 0:15:00]}  d5 {[%clk 0:15:00]} 2. g3 {[%clk 0:15:00]}  c5 {[%clk 0:15:44]} 3. Bg2 {[%clk 0:14:17]}  Nf6 {[%clk 0:15:44]} 4. O-O {[%clk 0:14:17]}  g6 {[%clk 0:15:44]} 5. d4 {[%clk 0:14:17]}  cxd4 {[%clk 0:15:44]} 6. Nxd4 {[%clk 0:14:17]}  Bg7 {[%clk 0:15:44]} 7. Nb3 {[%clk 0:14:17]}  Nc6 {[%clk 0:15:44]} 8. Nc3 {[%clk 0:14:17]}  e6 {[%clk 0:15:44]} 9. e4 {[%clk 0:14:17]}  d4 {[%clk 0:15:44]} 10. Na4 {[%clk 0:14:17]}  e5 {[%clk 0:15:44]} 11. c3 {[%clk 0:14:17]}  O-O {[%clk 0:15:44]} 12. cxd4 {[%clk 0:14:17]}  exd4 {[%clk 0:15:44]} 13. Nac5 {[%clk 0:14:02]}  Re8 {[%clk 0:13:44]} 14. Re1 {[%clk 0:14:02]}  Qb6 {[%clk 0:13:44]} 15. h3 {[%clk 0:14:02]}  a5 {[%clk 0:13:21]} 16. Nd3 {[%clk 0:12:27]}  Nd7 {[%clk 0:13:21]} 17. Bd2 {[%clk 0:12:30]}  a4 {[%clk 0:12:29]} 18. Nbc1 {[%clk 0:12:30]}  Nde5 {[%clk 0:12:29]} 19. Rb1 {[%clk 0:12:30]}  Nxd3 {[%clk 0:12:12]} 20. Nxd3 {[%clk 0:09:16]}  Be6 {[%clk 0:12:12]} 21. Ra1 {[%clk 0:09:16]}  Bc4 {[%clk 0:12:12]} 22. Bf1 {[%clk 0:09:16]}  Bxd3 {[%clk 0:11:12]} 23. Bxd3 {[%clk 0:07:53]}  Qxb2 {[%clk 0:11:12]} 24. Bc4 {[%clk 0:07:53]}  Ne5 {[%clk 0:11:12]} 25. Be2 {[%clk 0:07:53]}  d3 {[%clk 0:11:12]} 26. Bg4 {[%clk 0:07:53]}  Nxg4 {[%clk 0:11:12]} 27. Rb1 {[%clk 0:07:53]}  Nxf2 {[%clk 0:11:12]} 28. Kxf2 {[%clk 0:07:53]}  Qxa2 {[%clk 0:11:12]} 29. Rxb7 {[%clk 0:07:53]}  a3 {[%clk 0:11:15]} 30. Kg1 {[%clk 0:07:08]}  Qe6 {[%clk 0:11:15]} 31. e5 {[%clk 0:07:08]}  Bxe5 {[%clk 0:11:15]} 32. Bc3 {[%clk 0:07:08]}  Qd5 {[%clk 0:11:26]} 0-1


[Site "http://www.Chess.com"]

[Event "FIDE World Rapid Chess Championship 2021"]
[White "Quparadze, Giga"]
[Black "Petrosyan, Manuel"]
[WhiteFideId "13602250"]
[BlackFideId "13300857"]
[WhiteElo "2583"]
[BlackElo "2514"]
[Result "1/2-1/2"]
[Round "08"]
[TimeControl "900+10"]
[Date "2021.12.27"]
[WhiteClock "0:06:28"]
[BlackClock "0:00:52"]

1. e4 {[%clk 0:15:00]}  e5 {[%clk 0:15:00]} 2. Nf3 {[%clk 0:15:00]}  Nc6 {[%clk 0:15:00]} 3. Bb5 {[%clk 0:15:00]}  a6 {[%clk 0:15:00]} 4. Ba4 {[%clk 0:15:00]}  Nf6 {[%clk 0:15:00]} 5. Qe2 {[%clk 0:15:00]}  b5 {[%clk 0:15:31]} 6. Bb3 {[%clk 0:16:12]}  Bc5 {[%clk 0:15:31]} 7. c3 {[%clk 0:16:12]}  O-O {[%clk 0:15:31]} 8. d3 {[%clk 0:16:12]}  h6 {[%clk 0:15:31]} 9. O-O {[%clk 0:15:00]}  Re8 {[%clk 0:14:53]} 10. Nh4 {[%clk 0:15:00]}  d5 {[%clk 0:14:53]} 11. exd5 {[%clk 0:15:00]}  Nxd5 {[%clk 0:14:53]} 12. Qf3 {[%clk 0:15:00]}  Be6 {[%clk 0:14:53]} 13. Nf5 {[%clk 0:15:00]}  Bf8 {[%clk 0:13:15]} 14. Nd2 {[%clk 0:14:59]}  g6 {[%clk 0:10:54]} 15. Ne3 {[%clk 0:13:49]}  Nxe3 {[%clk 0:10:54]} 16. fxe3 {[%clk 0:13:49]}  Qd7 {[%clk 0:05:54]} 17. Ne4 {[%clk 0:14:05]}  Be7 {[%clk 0:05:54]} 18. d4 {[%clk 0:14:05]}  Bxb3 {[%clk 0:05:54]} 19. axb3 {[%clk 0:14:05]}  f5 {[%clk 0:05:54]} 20. Nf2 {[%clk 0:13:46]}  e4 {[%clk 0:04:43]} 21. Qh3 {[%clk 0:13:46]}  Bg5 {[%clk 0:04:43]} 22. g4 {[%clk 0:13:46]}  Kh7 {[%clk 0:02:48]} 23. gxf5 {[%clk 0:13:04]}  gxf5 {[%clk 0:02:48]} 24. Nh1 {[%clk 0:13:04]}  Rg8 {[%clk 0:02:48]} 25. Ng3 {[%clk 0:13:04]}  Ne7 {[%clk 0:02:48]} 26. Bd2 {[%clk 0:13:22]}  Qe6 {[%clk 0:00:36]} 27. Ra3 {[%clk 0:13:22]}  Raf8 {[%clk 0:00:36]} 28. Kh1 {[%clk 0:11:36]}  Ng6 {[%clk 0:00:30]} 29. c4 {[%clk 0:08:55]}  bxc4 {[%clk 0:00:44]} 30. bxc4 {[%clk 0:08:55]}  Qxc4 {[%clk 0:00:44]} 31. Rc3 {[%clk 0:08:55]}  Qf7 {[%clk 0:00:44]} 32. Rc5 {[%clk 0:09:03]}  Nh4 {[%clk 0:00:44]} 33. Nxe4 {[%clk 0:09:03]}  Be7 {[%clk 0:00:44]} 34. Rxc7 {[%clk 0:09:03]}  Rg7 {[%clk 0:00:26]} 35. Nc3 {[%clk 0:07:37]}  Rfg8 {[%clk 0:00:26]} 36. Be1 {[%clk 0:07:37]}  Ng2 {[%clk 0:00:26]} 37. Rc6 {[%clk 0:07:37]}  Rg6 {[%clk 0:00:26]} 38. Rxg6 {[%clk 0:05:58]}  Rxg6 {[%clk 0:00:26]} 39. Rg1 {[%clk 0:05:58]}  Nxe1 {[%clk 0:00:26]} 40. Rxe1 {[%clk 0:05:58]}  Bb4 {[%clk 0:00:26]} 41. Rf1 {[%clk 0:05:58]}  Qb7+ {[%clk 0:00:26]} 42. Qf3 {[%clk 0:05:58]}  Qxf3+ {[%clk 0:00:26]} 43. Rxf3 {[%clk 0:05:58]}  Bxc3 {[%clk 0:00:26]} 44. bxc3 {[%clk 0:05:58]}  Rc6 {[%clk 0:00:26]} 45. Rxf5 {[%clk 0:05:58]}  Rxc3 {[%clk 0:00:26]} 46. Re5 {[%clk 0:05:58]}  Rc2 {[%clk 0:00:26]} 47. Kg1 {[%clk 0:05:58]}  Ra2 {[%clk 0:00:26]} 48. h4 {[%clk 0:06:54]}  Kg6 {[%clk 0:00:06]} 49. h5+ {[%clk 0:06:54]}  Kf6 {[%clk 0:00:06]} 50. Kf1 {[%clk 0:06:54]}  a5 {[%clk 0:00:06]} 51. Ke1 {[%clk 0:06:54]}  a4 {[%clk 0:00:06]} 52. Ra5 {[%clk 0:06:54]}  a3 {[%clk 0:00:06]} 53. Kd1 {[%clk 0:06:54]}  Ra1+ {[%clk 0:00:06]} 54. Kc2 {[%clk 0:06:54]}  a2 {[%clk 0:00:06]} 55. e4 {[%clk 0:06:54]}  Ke6 {[%clk 0:00:06]} 56. Ra6+ {[%clk 0:06:54]}  Ke7 {[%clk 0:00:06]} 57. e5 {[%clk 0:06:35]}  Ke8 {[%clk 0:00:05]} 58. Ra5 {[%clk 0:06:35]}  Kd7 {[%clk 0:00:05]} 59. Ra4 {[%clk 0:06:35]}  Kc6 {[%clk 0:00:05]} 60. e6 {[%clk 0:06:35]}  Kd5 {[%clk 0:00:05]} 61. e7 {[%clk 0:06:35]}  Re1 {[%clk 0:00:05]} 62. Kd3 {[%clk 0:06:35]}  Rxe7 {[%clk 0:00:05]} 63. Rxa2 {[%clk 0:05:39]}  Rg7 {[%clk 0:00:10]} 64. Ra5+ {[%clk 0:05:39]}  Kd6 {[%clk 0:00:10]} 65. Kc4 {[%clk 0:05:39]}  Rc7+ {[%clk 0:00:10]} 66. Rc5 {[%clk 0:05:39]}  Ra7 {[%clk 0:00:10]} 67. Rf5 {[%clk 0:05:39]}  Ra4+ {[%clk 0:00:10]} 68. Kc3 {[%clk 0:05:39]}  Ra3+ {[%clk 0:00:10]} 69. Kc4 {[%clk 0:05:39]}  Ra4+ {[%clk 0:00:10]} 70. Kd3 {[%clk 0:05:39]}  Ra1 {[%clk 0:00:10]} 71. Rb5 {[%clk 0:05:39]}  Rh1 {[%clk 0:00:10]} 72. Ra5 {[%clk 0:05:39]}  Rh2 {[%clk 0:00:10]} 73. Kc4 {[%clk 0:05:39]}  Rc2+ {[%clk 0:00:10]} 74. Kb3 {[%clk 0:05:39]}  Rh2 {[%clk 0:00:10]} 75. Kc3 {[%clk 0:05:39]}  Rh1 {[%clk 0:00:10]} 76. Kd3 {[%clk 0:05:39]}  Rh2 {[%clk 0:00:10]} 77. Ke3 {[%clk 0:05:39]}  Rh3+ {[%clk 0:00:10]} 78. Ke4 {[%clk 0:05:39]}  Rh4+ {[%clk 0:00:52]} 79. Kd3 {[%clk 0:06:28]}  Rh2 {[%clk 0:00:52]} 80. Ke4 {[%clk 0:06:28]} 1/2-1/2


[Site "http://www.Chess.com"]

[Event "FIDE World Rapid Chess Championship 2021"]
[White "Alonso Rosell, Alvar"]
[Black "Ivic, Velimir"]
[WhiteFideId "2270544"]
[BlackFideId "950122"]
[WhiteElo "2571"]
[BlackElo "2357"]
[Result "0-1"]
[Round "08"]
[TimeControl "900+10"]
[Date "2021.12.27"]
[WhiteClock "0:00:28"]
[BlackClock "0:09:13"]

1. d4 {[%clk 0:15:00]}  Nf6 {[%clk 0:15:00]} 2. Bf4 {[%clk 0:15:00]}  g6 {[%clk 0:15:00]} 3. Nc3 {[%clk 0:15:00]}  d5 {[%clk 0:15:00]} 4. e3 {[%clk 0:15:00]}  Bg7 {[%clk 0:15:00]} 5. h4 {[%clk 0:15:00]}  h5 {[%clk 0:15:00]} 6. Nf3 {[%clk 0:15:09]}  O-O {[%clk 0:16:03]} 7. Ne5 {[%clk 0:15:09]}  c5 {[%clk 0:16:03]} 8. Qd2 {[%clk 0:15:09]}  Nc6 {[%clk 0:16:03]} 9. f3 {[%clk 0:15:09]}  Bf5 {[%clk 0:16:03]} 10. dxc5 {[%clk 0:15:09]}  Qa5 {[%clk 0:16:03]} 11. Bb5 {[%clk 0:10:22]}  Nxe5 {[%clk 0:15:19]} 12. Bxe5 {[%clk 0:10:22]}  a6 {[%clk 0:15:19]} 13. Bd3 {[%clk 0:10:22]}  Bxd3 {[%clk 0:15:19]} 14. Qxd3 {[%clk 0:08:07]}  Qxc5 {[%clk 0:14:03]} 15. O-O-O {[%clk 0:08:07]}  e6 {[%clk 0:14:03]} 16. Kb1 {[%clk 0:06:56]}  Rac8 {[%clk 0:12:52]} 17. Qe2 {[%clk 0:05:22]}  Nd7 {[%clk 0:12:52]} 18. Bxg7 {[%clk 0:05:22]}  Kxg7 {[%clk 0:12:52]} 19. g4 {[%clk 0:04:31]}  Rh8 {[%clk 0:10:36]} 20. g5 {[%clk 0:04:31]}  Ne5 {[%clk 0:10:01]} 21. Rde1 {[%clk 0:02:10]}  Nc4 {[%clk 0:10:01]} 22. Nd1 {[%clk 0:02:10]}  Rhd8 {[%clk 0:10:01]} 23. Qd3 {[%clk 0:02:10]}  d4 {[%clk 0:10:01]} 24. exd4 {[%clk 0:00:27]}  Rxd4 {[%clk 0:09:58]} 25. Qc3 {[%clk 0:00:25]}  Nd2+ {[%clk 0:09:58]} 26. Kc1 {[%clk 0:00:25]}  Qxc3 {[%clk 0:09:58]} 27. Nxc3 {[%clk 0:00:25]}  Nxf3 {[%clk 0:09:58]} 28. Re4 {[%clk 0:00:25]}  Rcc4 {[%clk 0:09:58]} 29. Re3 {[%clk 0:00:25]}  Nxh4 {[%clk 0:09:13]} 30. b3 {[%clk 0:00:28]}  Nf5 {[%clk 0:09:13]} 31. Rf3 {[%clk 0:00:28]}  Rc8 {[%clk 0:09:13]} 32. Re1 {[%clk 0:00:28]}  Rg4 {[%clk 0:09:13]} 0-1


[Site "http://www.Chess.com"]

[Event "FIDE World Rapid Chess Championship 2021"]
[White "Jumabayev, Rinat"]
[Black "Puranik, Abhimanyu"]
[WhiteFideId "13702661"]
[BlackFideId "5061245"]
[WhiteElo "2562"]
[BlackElo "2472"]
[Result "0-1"]
[Round "08"]
[TimeControl "900+10"]
[Date "2021.12.27"]
[WhiteClock "0:00:22"]
[BlackClock "0:04:28"]

1. Nf3 {[%clk 0:15:00]}  Nf6 {[%clk 0:15:00]} 2. c4 {[%clk 0:15:00]}  c5 {[%clk 0:15:00]} 3. Nc3 {[%clk 0:15:00]}  d5 {[%clk 0:15:00]} 4. cxd5 {[%clk 0:15:00]}  Nxd5 {[%clk 0:15:00]} 5. e3 {[%clk 0:15:00]}  e6 {[%clk 0:15:00]} 6. Bc4 {[%clk 0:15:58]}  Be7 {[%clk 0:15:30]} 7. O-O {[%clk 0:15:58]}  O-O {[%clk 0:15:30]} 8. Qe2 {[%clk 0:15:58]}  b6 {[%clk 0:14:36]} 9. d4 {[%clk 0:16:18]}  cxd4 {[%clk 0:14:36]} 10. Bxd5 {[%clk 0:16:18]}  exd5 {[%clk 0:14:36]} 11. Nxd4 {[%clk 0:16:18]}  Bf6 {[%clk 0:14:36]} 12. Rd1 {[%clk 0:16:18]}  Bb7 {[%clk 0:14:36]} 13. b3 {[%clk 0:16:18]}  Re8 {[%clk 0:14:36]} 14. Bb2 {[%clk 0:16:18]}  Nd7 {[%clk 0:14:36]} 15. Nf5 {[%clk 0:16:18]}  Nc5 {[%clk 0:14:36]} 16. Rac1 {[%clk 0:15:53]}  Re5 {[%clk 0:14:12]} 17. Qg4 {[%clk 0:13:38]}  h5 {[%clk 0:10:42]} 18. Qf3 {[%clk 0:10:53]}  d4 {[%clk 0:07:38]} 19. e4 {[%clk 0:10:53]}  Nxe4 {[%clk 0:07:38]} 20. Rxd4 {[%clk 0:10:53]}  Nd6 {[%clk 0:06:12]} 21. Nh6+ {[%clk 0:06:07]}  gxh6 {[%clk 0:05:39]} 22. Qg3+ {[%clk 0:01:34]}  Bg7 {[%clk 0:05:18]} 23. Nb5 {[%clk 0:01:34]}  Qe8 {[%clk 0:04:28]} 24. f4 {[%clk 0:00:22]}  Nf5 {[%clk 0:04:28]} 0-1


[Site "http://www.Chess.com"]

[Event "FIDE World Rapid Chess Championship 2021"]
[White "Shoker, Samy"]
[Black "Babazada, Khazar"]
[WhiteFideId "627143"]
[BlackFideId "13413554"]
[WhiteElo "2550"]
[BlackElo "2170"]
[Result "0-1"]
[Round "08"]
[TimeControl "900+10"]
[Date "2021.12.27"]
[WhiteClock "0:01:33"]
[BlackClock "0:02:03"]

1. Nf3 {[%clk 0:15:00]}  g6 {[%clk 0:15:00]} 2. g3 {[%clk 0:15:00]}  Bg7 {[%clk 0:15:00]} 3. Bg2 {[%clk 0:15:00]}  d6 {[%clk 0:15:10]} 4. c4 {[%clk 0:16:00]}  Nc6 {[%clk 0:15:10]} 5. Nc3 {[%clk 0:16:00]}  Bd7 {[%clk 0:15:10]} 6. Rb1 {[%clk 0:16:00]}  Nf6 {[%clk 0:15:10]} 7. b4 {[%clk 0:16:00]}  Qc8 {[%clk 0:15:10]} 8. h3 {[%clk 0:16:00]}  e5 {[%clk 0:15:10]} 9. d3 {[%clk 0:16:00]}  O-O {[%clk 0:15:10]} 10. b5 {[%clk 0:16:00]}  Nd8 {[%clk 0:15:10]} 11. a4 {[%clk 0:16:00]}  a6 {[%clk 0:15:10]} 12. h4 {[%clk 0:16:00]}  axb5 {[%clk 0:15:10]} 13. axb5 {[%clk 0:16:00]}  Re8 {[%clk 0:15:10]} 14. Nd2 {[%clk 0:13:07]}  Ne6 {[%clk 0:15:11]} 15. Bb2 {[%clk 0:13:07]}  Nd4 {[%clk 0:15:11]} 16. e3 {[%clk 0:12:46]}  Ne6 {[%clk 0:13:54]} 17. Nb3 {[%clk 0:12:46]}  h5 {[%clk 0:14:03]} 18. Ra1 {[%clk 0:09:55]}  Rb8 {[%clk 0:14:03]} 19. Ba3 {[%clk 0:09:45]}  Qd8 {[%clk 0:11:48]} 20. Qc2 {[%clk 0:07:55]}  Ng4 {[%clk 0:10:42]} 21. Ra2 {[%clk 0:07:55]}  f5 {[%clk 0:10:28]} 22. Nd5 {[%clk 0:05:13]}  c6 {[%clk 0:10:28]} 23. Bxd6 {[%clk 0:05:13]}  cxd5 {[%clk 0:10:28]} 24. Bxb8 {[%clk 0:05:13]}  Qxb8 {[%clk 0:10:28]} 25. cxd5 {[%clk 0:05:13]}  Nf8 {[%clk 0:10:28]} 26. b6 {[%clk 0:05:10]}  Rc8 {[%clk 0:09:40]} 27. Qd2 {[%clk 0:05:10]}  f4 {[%clk 0:09:40]} 28. Be4 {[%clk 0:05:10]}  fxe3 {[%clk 0:09:40]} 29. fxe3 {[%clk 0:05:10]}  Qd6 {[%clk 0:09:40]} 30. Na5 {[%clk 0:05:10]}  Bh6 {[%clk 0:09:23]} 31. Nc4 {[%clk 0:03:52]}  Qc5 {[%clk 0:09:23]} 32. Ra5 {[%clk 0:03:14]}  Qe7 {[%clk 0:07:03]} 33. d6 {[%clk 0:03:14]}  Qd8 {[%clk 0:07:03]} 34. O-O {[%clk 0:03:14]}  Be6 {[%clk 0:06:33]} 35. Qb4 {[%clk 0:02:15]}  Nxe3 {[%clk 0:06:33]} 36. Nxe3 {[%clk 0:02:10]}  Bxe3+ {[%clk 0:03:56]} 37. Kh1 {[%clk 0:02:10]}  Bd4 {[%clk 0:03:56]} 38. Bd5 {[%clk 0:02:10]}  Bxd5+ {[%clk 0:03:56]} 39. Rxd5 {[%clk 0:02:10]}  Qd7 {[%clk 0:03:56]} 40. Rxd4 {[%clk 0:02:10]}  Qh3+ {[%clk 0:03:56]} 41. Kg1 {[%clk 0:02:10]}  Qxg3+ {[%clk 0:03:56]} 42. Kh1 {[%clk 0:01:02]}  exd4 {[%clk 0:02:52]} 43. Qxd4 {[%clk 0:01:02]}  Qh3+ {[%clk 0:02:52]} 44. Kg1 {[%clk 0:01:02]}  Qg4+ {[%clk 0:02:52]} 45. Qxg4 {[%clk 0:01:02]}  hxg4 {[%clk 0:02:52]} 46. Rf4 {[%clk 0:01:02]}  Rd8 {[%clk 0:02:52]} 47. Rd4 {[%clk 0:01:02]}  Kf7 {[%clk 0:02:52]} 48. Kg2 {[%clk 0:01:02]}  Ne6 {[%clk 0:02:52]} 49. Rxg4 {[%clk 0:01:02]}  Rxd6 {[%clk 0:02:52]} 50. Rb4 {[%clk 0:01:02]}  Rxd3 {[%clk 0:02:52]} 51. Kf2 {[%clk 0:01:02]}  Kf6 {[%clk 0:02:52]} 52. Rb5 {[%clk 0:01:02]}  Rh3 {[%clk 0:02:52]} 53. Rb4 {[%clk 0:01:02]}  Rc3 {[%clk 0:02:52]} 54. Ke2 {[%clk 0:01:02]}  Kf5 {[%clk 0:02:52]} 55. Kd2 {[%clk 0:01:02]}  Rc6 {[%clk 0:02:52]} 56. Kd3 {[%clk 0:01:02]}  Nc5+ {[%clk 0:02:52]} 57. Kd4 {[%clk 0:01:02]}  Nd7 {[%clk 0:02:03]} 58. Rb5+ {[%clk 0:01:33]}  Kg4 {[%clk 0:02:03]} 0-1


[Site "http://www.Chess.com"]

[Event "FIDE World Rapid Chess Championship 2021"]
[White "Sindarov, Javokhir"]
[Black "Piorun, Kacper"]
[WhiteFideId "14205483"]
[BlackFideId "1130420"]
[WhiteElo "2353"]
[BlackElo "2547"]
[Result "0-1"]
[Round "08"]
[TimeControl "900+10"]
[Date "2021.12.27"]
[WhiteClock "0:00:02"]
[BlackClock "0:01:38"]

1. e4 {[%clk 0:15:00]}  e5 {[%clk 0:15:00]} 2. Nf3 {[%clk 0:15:00]}  Nc6 {[%clk 0:15:00]} 3. Bc4 {[%clk 0:15:00]}  Bc5 {[%clk 0:14:02]} 4. b4 {[%clk 0:16:40]}  Bxb4 {[%clk 0:14:02]} 5. c3 {[%clk 0:16:40]}  Be7 {[%clk 0:14:02]} 6. d4 {[%clk 0:16:40]}  Na5 {[%clk 0:14:02]} 7. Bd3 {[%clk 0:16:40]}  d6 {[%clk 0:14:02]} 8. dxe5 {[%clk 0:16:40]}  dxe5 {[%clk 0:14:02]} 9. Nxe5 {[%clk 0:16:40]}  Nf6 {[%clk 0:14:02]} 10. O-O {[%clk 0:16:40]}  O-O {[%clk 0:14:02]} 11. Qc2 {[%clk 0:16:40]}  Nd7 {[%clk 0:14:02]} 12. Nxd7 {[%clk 0:16:40]}  Bxd7 {[%clk 0:14:02]} 13. Nd2 {[%clk 0:16:40]}  Be6 {[%clk 0:14:02]} 14. e5 {[%clk 0:15:52]}  g6 {[%clk 0:12:36]} 15. f4 {[%clk 0:15:52]}  Qd7 {[%clk 0:12:15]} 16. Ne4 {[%clk 0:13:35]}  Rad8 {[%clk 0:09:59]} 17. Ba3 {[%clk 0:13:35]}  f5 {[%clk 0:08:04]} 18. Nf6+ {[%clk 0:06:34]}  Bxf6 {[%clk 0:07:49]} 19. Bxf8 {[%clk 0:06:34]}  Kxf8 {[%clk 0:07:49]} 20. exf6 {[%clk 0:06:34]}  Qxd3 {[%clk 0:07:49]} 21. Qf2 {[%clk 0:06:34]}  Kf7 {[%clk 0:08:04]} 22. Qxa7 {[%clk 0:05:38]}  Qa6 {[%clk 0:08:04]} 23. Qc5 {[%clk 0:04:45]}  Qb6 {[%clk 0:05:48]} 24. Qxb6 {[%clk 0:04:45]}  cxb6 {[%clk 0:05:48]} 25. Rfd1 {[%clk 0:04:45]}  Ra8 {[%clk 0:05:48]} 26. a4 {[%clk 0:02:22]}  Nb3 {[%clk 0:06:13]} 27. Rab1 {[%clk 0:02:22]}  Rxa4 {[%clk 0:06:13]} 28. Rd6 {[%clk 0:02:22]}  Nc5 {[%clk 0:06:13]} 29. g3 {[%clk 0:02:22]}  Rc4 {[%clk 0:05:08]} 30. Rdxb6 {[%clk 0:00:50]}  Rxc3 {[%clk 0:05:11]} 31. Re1 {[%clk 0:00:50]}  Kxf6 {[%clk 0:03:27]} 32. Re5 {[%clk 0:00:37]}  Ke7 {[%clk 0:03:27]} 33. Kg2 {[%clk 0:00:37]}  Rc2+ {[%clk 0:03:27]} 34. Kh3 {[%clk 0:00:37]}  Kd7 {[%clk 0:03:27]} 35. Rb5 {[%clk 0:00:37]}  Kd6 {[%clk 0:03:27]} 36. Rb6+ {[%clk 0:00:37]}  Ke7 {[%clk 0:02:03]} 37. Rb5 {[%clk 0:00:57]}  Nd3 {[%clk 0:02:03]} 38. Rxb7+ {[%clk 0:00:57]}  Kf6 {[%clk 0:02:03]} 39. Ra5 {[%clk 0:00:57]}  Nf2+ {[%clk 0:02:03]} 40. Kh4 {[%clk 0:00:57]}  Ng4 {[%clk 0:02:03]} 41. h3 {[%clk 0:00:57]}  Rh2 {[%clk 0:02:03]} 42. Ra3 {[%clk 0:00:02]}  h6 {[%clk 0:01:38]} 43. Rg7 {[%clk 0:00:02]}  g5+ {[%clk 0:01:38]} 44. fxg5+ {[%clk 0:00:02]}  Kxg7 {[%clk 0:01:38]} 45. gxh6+ {[%clk 0:00:02]}  Nxh6 {[%clk 0:01:38]} 0-1


[Site "http://www.Chess.com"]

[Event "FIDE World Rapid Chess Championship 2021"]
[White "Tari, Aryan"]
[Black "Kosakowski, Jakub"]
[WhiteFideId "1510045"]
[BlackFideId "1185080"]
[WhiteElo "2542"]
[BlackElo "2304"]
[Result "1/2-1/2"]
[Round "08"]
[TimeControl "900+10"]
[Date "2021.12.27"]
[WhiteClock "0:01:36"]
[BlackClock "0:01:26"]

1. e4 {[%clk 0:15:00]}  c5 {[%clk 0:15:00]} 2. Nc3 {[%clk 0:15:00]}  Nc6 {[%clk 0:15:00]} 3. f4 {[%clk 0:15:28]}  e6 {[%clk 0:14:03]} 4. Nf3 {[%clk 0:15:28]}  a6 {[%clk 0:14:03]} 5. g3 {[%clk 0:15:28]}  d5 {[%clk 0:14:03]} 6. Bg2 {[%clk 0:15:28]}  dxe4 {[%clk 0:14:03]} 7. Nxe4 {[%clk 0:15:28]}  Be7 {[%clk 0:14:03]} 8. d3 {[%clk 0:15:28]}  Nf6 {[%clk 0:14:03]} 9. O-O {[%clk 0:15:28]}  Qc7 {[%clk 0:14:03]} 10. Qe1 {[%clk 0:14:52]}  O-O {[%clk 0:13:15]} 11. Nfg5 {[%clk 0:12:44]}  Nd5 {[%clk 0:12:05]} 12. c3 {[%clk 0:09:45]}  h6 {[%clk 0:09:29]} 13. Nf3 {[%clk 0:09:45]}  Bd7 {[%clk 0:09:29]} 14. Qf2 {[%clk 0:09:45]}  b6 {[%clk 0:08:18]} 15. a3 {[%clk 0:08:20]}  Rad8 {[%clk 0:08:18]} 16. Ned2 {[%clk 0:08:20]}  Bc8 {[%clk 0:07:43]} 17. Nc4 {[%clk 0:06:36]}  Bb7 {[%clk 0:07:43]} 18. Qe2 {[%clk 0:06:36]}  b5 {[%clk 0:07:43]} 19. Nce5 {[%clk 0:06:36]}  Na5 {[%clk 0:07:43]} 20. Bd2 {[%clk 0:06:36]}  Nb3 {[%clk 0:07:43]} 21. Rae1 {[%clk 0:06:41]}  Nxd2 {[%clk 0:05:46]} 22. Nxd2 {[%clk 0:06:41]}  b4 {[%clk 0:05:46]} 23. Rc1 {[%clk 0:06:41]}  bxc3 {[%clk 0:05:46]} 24. bxc3 {[%clk 0:06:41]}  Rfe8 {[%clk 0:04:22]} 25. Ndc4 {[%clk 0:06:32]}  Bf8 {[%clk 0:04:22]} 26. Be4 {[%clk 0:06:32]}  Rb8 {[%clk 0:04:22]} 27. g4 {[%clk 0:05:25]}  f6 {[%clk 0:03:21]} 28. Ng6 {[%clk 0:05:09]}  Bd6 {[%clk 0:03:21]} 29. Qf3 {[%clk 0:05:09]}  Ba8 {[%clk 0:03:21]} 30. Rc2 {[%clk 0:04:21]}  Rbd8 {[%clk 0:02:26]} 31. f5 {[%clk 0:04:21]}  Qf7 {[%clk 0:02:26]} 32. h4 {[%clk 0:02:52]}  Bc7 {[%clk 0:01:41]} 33. fxe6 {[%clk 0:02:52]}  Rxe6 {[%clk 0:00:49]} 34. Qf5 {[%clk 0:01:09]}  Rxe4 {[%clk 0:00:49]} 35. dxe4 {[%clk 0:01:09]}  Ne7 {[%clk 0:00:49]} 36. Nxe7+ {[%clk 0:01:09]}  Qxe7 {[%clk 0:00:49]} 37. e5 {[%clk 0:01:09]}  Bd5 {[%clk 0:00:49]} 38. Ne3 {[%clk 0:01:09]}  Bxe5 {[%clk 0:00:49]} 39. Nxd5 {[%clk 0:01:09]}  Rxd5 {[%clk 0:00:49]} 40. Qf3 {[%clk 0:01:09]}  Qd7 {[%clk 0:00:49]} 41. Rb2 {[%clk 0:01:03]}  Rd3 {[%clk 0:00:07]} 42. Qa8+ {[%clk 0:01:03]}  Kh7 {[%clk 0:00:07]} 43. Qe4+ {[%clk 0:01:03]}  Kg8 {[%clk 0:00:07]} 44. Rf3 {[%clk 0:01:03]}  Rd1+ {[%clk 0:00:07]} 45. Kg2 {[%clk 0:01:03]}  Rd2+ {[%clk 0:00:07]} 46. Rf2 {[%clk 0:01:03]}  Rd3 {[%clk 0:00:07]} 47. Rf3 {[%clk 0:01:03]}  Rd2+ {[%clk 0:00:07]} 48. Rxd2 {[%clk 0:01:03]}  Qxd2+ {[%clk 0:00:07]} 49. Kg1 {[%clk 0:01:03]}  Qc1+ {[%clk 0:00:16]} 50. Kf2 {[%clk 0:00:27]}  Qb2+ {[%clk 0:00:16]} 51. Qe2 {[%clk 0:00:27]}  Qxa3 {[%clk 0:00:16]} 52. g5 {[%clk 0:00:27]}  Qa4 {[%clk 0:00:16]} 53. c4 {[%clk 0:00:27]}  hxg5 {[%clk 0:00:16]} 54. hxg5 {[%clk 0:00:27]}  Qd7 {[%clk 0:00:16]} 55. Qd3 {[%clk 0:00:27]}  Bd4+ {[%clk 0:00:16]} 56. Kf1 {[%clk 0:00:27]}  fxg5 {[%clk 0:00:16]} 57. Qe4 {[%clk 0:00:27]}  Qc8 {[%clk 0:00:16]} 58. Qd5+ {[%clk 0:00:27]}  Kh7 {[%clk 0:00:16]} 59. Qxg5 {[%clk 0:00:27]}  Qe6 {[%clk 0:00:16]} 60. Qh5+ {[%clk 0:00:40]}  Kg8 {[%clk 0:00:16]} 61. Qd5 {[%clk 0:00:40]}  Qxd5 {[%clk 0:00:16]} 62. cxd5 {[%clk 0:00:40]}  Bf6 {[%clk 0:00:16]} 63. Ra3 {[%clk 0:00:40]}  c4 {[%clk 0:00:16]} 64. Rxa6 {[%clk 0:00:40]}  Kf7 {[%clk 0:00:16]} 65. Ke2 {[%clk 0:00:40]}  c3 {[%clk 0:00:16]} 66. Rc6 {[%clk 0:00:40]}  Ke7 {[%clk 0:00:16]} 67. Kf3 {[%clk 0:00:40]}  Kd7 {[%clk 0:00:16]} 68. Ke4 {[%clk 0:00:40]}  Ke7 {[%clk 0:00:16]} 69. Kd3 {[%clk 0:00:40]}  Kd7 {[%clk 0:00:16]} 70. Kc4 {[%clk 0:00:40]}  Be5 {[%clk 0:00:16]} 71. Kc5 {[%clk 0:01:30]}  g5 {[%clk 0:00:16]} 72. d6 {[%clk 0:01:30]}  c2 {[%clk 0:00:16]} 73. Kd5 {[%clk 0:01:30]}  c1=Q {[%clk 0:00:16]} 74. Rxc1 {[%clk 0:01:30]}  Bxd6 {[%clk 0:00:16]} 75. Rc6 {[%clk 0:01:30]}  Bf4 {[%clk 0:00:16]} 76. Re6 {[%clk 0:01:30]}  Kc7 {[%clk 0:00:16]} 77. Rg6 {[%clk 0:01:30]}  Kb7 {[%clk 0:00:16]} 78. Kc5 {[%clk 0:01:30]}  Be3+ {[%clk 0:00:16]} 79. Kc4 {[%clk 0:01:30]}  Kc7 {[%clk 0:00:16]} 80. Kd3 {[%clk 0:01:30]}  Bf4 {[%clk 0:00:16]} 81. Kd4 {[%clk 0:01:30]}  Kb7 {[%clk 0:00:16]} 82. Kc5 {[%clk 0:01:30]}  Be3+ {[%clk 0:00:16]} 83. Kd6 {[%clk 0:01:30]}  Kb6 {[%clk 0:01:26]} 84. Re6 {[%clk 0:01:36]}  Bf4+ {[%clk 0:01:26]} 85. Kd5+ {[%clk 0:01:36]}  Kb5 {[%clk 0:01:26]} 86. Re4 {[%clk 0:01:36]}  Kb6 {[%clk 0:01:26]} 87. Rb4+ {[%clk 0:01:36]}  Kc7 {[%clk 0:01:26]} 88. Rb1 {[%clk 0:01:36]}  Be3 {[%clk 0:01:26]} 89. Re1 {[%clk 0:01:36]}  Bf4 {[%clk 0:01:26]} 90. Kc5 {[%clk 0:01:36]}  Kd7 {[%clk 0:01:26]} 91. Re4 {[%clk 0:01:36]}  Bd6+ {[%clk 0:01:26]} 92. Kd5 {[%clk 0:01:36]}  Bf4 {[%clk 0:01:26]} 93. Rc4 {[%clk 0:01:36]}  Ke7 {[%clk 0:01:26]} 94. Rc6 {[%clk 0:01:36]}  Kf7 {[%clk 0:01:26]} 95. Ke4 {[%clk 0:01:36]} 1/2-1/2


[Site "http://www.Chess.com"]